Cogmind - Beta 13 @@@ ROGUE MODE // 2024.05.05 @ 22:13:51 Player: willy Result: Destroyed by H-55 Commando with Gauss Rifle Performance ------------- Evolutions (3) 1500 Regions Visited (4) 800 Robots Destroyed (56) 280 Value Destroyed (1905) 1905 Prototype IDs (3) 60 Alien Tech Used (0) 0 Bonus (0) 0 TOTAL SCORE: 4545 Bonus ------- None Cogmind --------- Core Integrity 0/700 Matter 114/300 Energy 99/100 System Corruption 1% Temperature Cool (0) Movement Core (50) Location -7/Factory Parts ------- > --- POWER (3) -------- (None) > --- PROPULSION (4) --- (None) > --- UTILITY (3) ------ Advanced ECM Suite > --- WEAPON (3) ------- (None) > --- INVENTORY (5) ---- (None) Peak State ------------ > --- POWER ------------ Nuclear Core Light Nuclear Core Light Nuclear Core > --- PROPULSION ------- Aluminum Leg Aluminum Leg Armored Huge Wheel > --- UTILITY ---------- Improved Heat Sink Improved Terrain Scanner Advanced ECM Suite > --- WEAPON ----------- Arc Projector Pulse Rifle Katana > --- INVENTORY -------- Aluminum Leg Aluminum Leg Improved Sensor Array Arc Projector Minigun [Rating: 40] Favorites ----------- Power Light Nuclear Core Engine Ion Engine Power Core Light Nuclear Core Propulsion Aluminum Leg Treads Armored Treads Leg Aluminum Leg Wheel Armored Huge Wheel Flight Unit Flight Unit Utility Large Storage Unit Device Terrain Scanner Storage Large Storage Unit Processor Visual Processing Unit Protection Medium Armor Plating Weapon Improved EM Shotgun Energy Gun Improved EM Shotgun Energy Cannon Advanced Beam Cannon Ballistic Gun Heavy Assault Rifle Ballistic Cannon Light Cannon Special Weapon Welding Torch Slashing Weapon Katana Special Melee Weapon Datajack Build | -11 -10 -9 -8 -7 ------- Run | Yrd Mat Mat Mat Fac Slots Evolved 6 | . . 2 2 2 Power 2 | . . . 1 1 Propulsion 2 | . . 2 . . Utility 1 | . . . 1 . Weapon 1 | . . . . 1 Parts Attached 111 | 6 15 36 33 21 Power 14 | 1 . 3 8 2 Engine 8 | 1 . 3 4 . Core 6 | . . . 4 2 Reactor . | . . . . . Propulsion 37 | 2 3 15 11 6 Treads 8 | . . 4 4 . Leg 26 | 2 3 9 7 5 Wheel 1 | . . . . 1 Hover . | . . . . . Flight 2 | . . 2 . . Utility 23 | 1 6 3 8 5 Device 12 | . 4 1 3 4 Storage 3 | 1 1 . 1 . Processor 3 | . 1 2 . . Hackware . | . . . . . Protection 5 | . . . 4 1 Artifact . | . . . . . Weapon 37 | 2 6 15 6 8 Energy Gun 14 | 1 1 4 3 5 Energy Cannon 2 | . . 2 . . Ballistic Gun 15 | 1 3 7 2 2 Ballistic Cannon 1 | . . 1 . . Launcher . | . . . . . Special Weapon 2 | . 1 1 . . Impact Weapon . | . . . . . Slashing Weapon 2 | . . . 1 1 Piercing Weapon . | . . . . . Special Melee Weapon 1 | . 1 . . . Unidentified Prototypes 3 | . . 3 . . Corrupted Parts 1 | . . . 1 . System Corruption 2 | . . . 2 . Parts Lost 39 | . 3 8 8 20 Power 6 | . . 1 1 4 Propulsion 17 | . 1 4 6 6 Utility 6 | . . 2 . 4 Weapon 10 | . 2 1 1 6 Highest Loss Streak 9 | . 3 4 4 9 To Critical Strikes . | . . . . . Average Slot Usage (%) 87 | . 97 81 94 65 Engine 9 | . 14 10 7 1 Core 3 | . . . 9 9 Treads 5 | . . 6 10 . Leg 23 | . 28 22 25 13 Flight 1 | . . 3 . . Device 9 | . 13 4 8 15 Storage 9 | . 9 11 9 2 Processor 4 | . 4 3 5 . Energy Gun 6 | . 2 9 6 6 Ballistic Gun 9 | . 18 5 6 3 Slashing Weapon 1 | . . . 2 5 Special Melee Weapon 1 | . 3 1 . . Naked Turns . | . . . . . Heaviest Build 49 | 13 32 33 49 44 Greatest Support 49 | 20 26 49 46 35 Greatest Overweight (x) 4 | . 1 2 2 4 Average Overweight (x) . | . . . . . Largest Inventory Capacity 15 | 8 15 15 15 15 Average Capacity 12 | 6 9 15 15 8 Most Carried 15 | 4 15 15 15 15 Average Carried 11 | 2 7 13 14 4 Final Capacity 15 | 8 15 15 15 5 Final Carried 15 | 4 15 15 14 . Class Distribution -------------------- 73% | Mutant 26% | Scavenger-Mutant Dominant Class ---------------- Mutant | -10/Materials Mutant | -9/Materials Scavenger-Mutant | -8/Materials Scavenger-Mutant | -7/Factory Resources | -11 -10 -9 -8 -7 ----------- Run | Yrd Mat Mat Mat Fac Matter Collected 1957 | 233 226 726 509 263 Remotely . | . . . . . Salvage Created 2216 | . 177 592 1184 263 Parts 131 | . 10 46 68 7 Haulers Intercepted 1 | . . 1 . . Recyclers Shooed 1 | . . . 1 . Parts Field Recycled . | . . . . . Retrieved Matter . | . . . . . Parts Self-Destructed . | . . . . . Prevented . | . . . . . Kills | -11 -10 -9 -8 -7 ------- Run | Yrd Mat Mat Mat Fac Combat Hostiles Destroyed 45 | . 5 16 19 5 Guns 40 | . 5 13 17 5 Cannons 3 | . . 3 . . AOE 1 | . . . 1 . Classes Destroyed 10 | . 3 3 4 . Worker 1 | . . . 1 . Hauler 1 | . . 1 . . Recycler 3 | . 1 1 1 . Operator 1 | . . . 1 . Watcher 5 | . . 3 2 . Swarmer 11 | . 3 8 . . Grunt 17 | . 2 2 9 4 Duelist 1 | . . . 1 . Sentry 13 | . . 6 7 . Hunter 3 | . . . 2 1 Best Kill Streak 4 | . 4 2 4 2 Combat Bots Only 4 | . 4 2 4 2 Max Kills in Single Turn 1 | . 1 1 1 1 Gunslinging . | . . . . . Exploded 1 | . . . 1 . Melee . | . . . . . Uniques/NPCs Destroyed . | . . . . . Combat | -11 -10 -9 -8 -7 -------- Run | Yrd Mat Mat Mat Fac Hostile Shots Fired 540 | . 63 118 170 189 Missed 140 | . 15 38 38 49 Damage Taken 5801 | . 504 1101 2102 2094 Core 1239 | . 77 193 256 713 Absorbed by Shields 45 | . 45 . . . Regen/Repaired (Parts) 156 | . . 82 74 . Core Remaining (%) 68 | 100 69 51 53 . Volleys Fired 211 | . 23 63 78 47 Largest 2 | . 2 2 2 2 Hottest 118 | . 80 110 115 118 Shots Fired 362 | . 35 117 143 67 Gun 326 | . 32 84 143 67 Cannon 31 | . . 31 . . Launcher . | . . . . . Special 5 | . 3 2 . . Kinetic 201 | . 13 89 69 30 Thermal 57 | . 3 14 17 23 Explosive . | . . . . . Electromagnetic 104 | . 19 14 57 14 Robot Hit Streak 19 | . 6 19 16 13 Robot Miss Streak 6 | . 3 4 6 3 Penetration Max . | . . . . . Secondary Targets 7 | . . 2 4 1 Max Gunslinging Chain 1 | . . 1 1 1 Shots Hit Robots 255 | . 20 75 106 54 Core Hits 134 | . 10 42 65 17 Critical Kills 1 | . . 1 . . Critical Parts Destroyed 2 | . . . . 2 Critical Strikes 3 | . . 1 . 2 Destroy 3 | . . 1 . 2 Melee Attacks 4 | . 3 1 . . Impact . | . . . . . Slashing . | . . . . . Piercing . | . . . . . Sneak Attacks 3 | . 3 . . . Combat Hostiles . | . . . . . Follow-up Attacks . | . . . . . Damage Inflicted 4096 | . 224 1195 1827 850 Guns 3714 | . 197 897 1770 850 Cannons 295 | . . 295 . . Explosions 80 | . 27 . 53 . Melee . | . . . . . Ramming 7 | . . 3 4 . Kinetic 2137 | . 57 835 880 365 Thermal 749 | . 21 184 202 342 Explosive 6 | . 6 . . . Electromagnetic 1197 | . 140 173 741 143 Impact . | . . . . . Slashing . | . . . . . Piercing . | . . . . . Highest Corruption 2 | . 1 . 2 1 Average Corruption 1 | . 1 . 2 1 Corruption Purged . | . . . . . Corruption Blocked . | . . . . . Effects 26 | . 3 . 23 . Message Errors 3 | . . . 3 . Matter Fused 5 | . 1 . 4 . Heat Flow Errors 4 | . 1 . 3 . Energy Discharges 8 | . . . 8 . Data Loss (minor) 2 | . 1 . 1 . Misfires 2 | . . . 2 . Alerts 1 | . . . 1 . Weapon Failures 1 | . . . 1 . Overload Shots . | . . . . . Overflow Damage . | . . . . . Projectiles . | . . . . . Explosions . | . . . . . Melee . | . . . . . Knockbacks 1 | . . 1 . . Impact . | . . . . . Kinetic 1 | . . 1 . . Secondary . | . . . . . Self-Inflicted Damage 143 | . 96 . 47 . Shots 3 | . 2 . 1 . Rammed 1 | . . . 1 . Targets Rammed 2 | . . 1 1 . Kicked 1 | . . 1 . . Crushed . | . . . . . Highest Temperature 726 | . 158 90 726 516 Average Temperature 100 | . 37 22 116 199 Received Heat Transfer 1347 | . 60 219 711 357 Effects 25 | . . . 17 8 Shutdowns 11 | . . . 7 4 Energy Bleed 4 | . . . 4 . Interference 1 | . . . . 1 Matter Decay 6 | . . . 4 2 Short Circuit 1 | . . . 1 . Damage (minor) 1 | . . . 1 . Damage (core) 1 | . . . . 1 Siege Activations . | . . . . . Robots Corrupted 1 | . . . 1 . Combat Hostiles 1 | . . . 1 . Parts Fried 7 | . . 3 4 . Impact Corruptions . | . . . . . Robots Melted . | . . . . . Combat Hostiles . | . . . . . Parts Melted . | . . . . . Heat Transferred 1368 | . 50 225 353 740 Parts Sabotaged . | . . . . . Parts Stolen . | . . . . . Parts Stripped . | . . . . . Power Chain Reactions 2 | . 1 . 1 . Alert | -11 -10 -9 -8 -7 ------- Run | Yrd Mat Mat Mat Fac Peak Influence 330 | . 295 328 330 159 Initial 79 | . . . 65 79 Average 136 | . 57 150 207 77 Maximum Alert Level 1 | . 1 1 1 . Low Security (%) 64 | 100 88 59 36 100 Level 1 35 | . 11 40 63 . Level 2 . | . . . . . Level 3 . | . . . . . Level 4 . | . . . . . Level 5 . | . . . . . High Security . | . . . . . Max Security . | . . . . . Squads Dispatched 14 | . 4 3 5 2 Investigation 4 | . 2 1 1 . Extermination 1 | . . . . 1 Reinforcement 6 | . 2 2 1 1 Assault . | . . . . . Garrison 3 | . . . 3 . Intercept . | . . . . . Searches Triggered . | . . . . . Construction Impeded . | . . . . . Haulers Reinforced . | . . . . . Active Scanning Responses . | . . . . . Cargo Convoy Interrupts . | . . . . . Stealth | -11 -10 -9 -8 -7 --------- Run | Yrd Mat Mat Mat Fac Distress Signals 7 | . . 3 4 . Communications Jammed . | . . . . . Distress Signals . | . . . . . Times Spotted 87 | . 9 30 40 8 Peak Tracking Total 6 | . 4 6 6 4 Tactical Retreats 8 | . 2 4 2 . Traps | -11 -10 -9 -8 -7 ------- Run | Yrd Mat Mat Mat Fac Traps Triggered 1 | . 1 . . . Indirectly . | . . . . . Trap Hack Attempts . | . . . . . Triggered . | . . . . . Disarmed . | . . . . . Reprogrammed . | . . . . . Reused . | . . . . . Traps Extracted . | . . . . . Installed . | . . . . . Triggered 1 | . 1 . . . Machines | -11 -10 -9 -8 -7 ---------- Run | Yrd Mat Mat Mat Fac Machines Disabled 5 | . 2 2 1 . Max in Single Turn 2 | . 2 1 1 . Machines Repaired . | . . . . . Machines Dismantled . | . . . . . Machines Sabotaged 1 | . 1 . . . Overloaded Fab Kills . | . . . . . Hacking | -11 -10 -9 -8 -7 --------- Run | Yrd Mat Mat Mat Fac Machines Accessed 9 | . 2 3 3 1 Terminals 4 | . 2 . 1 1 Fabricators . | . . . . . Repair Stations 3 | . . 2 1 . Recycling Units 2 | . . 1 1 . Scanalyzers . | . . . . . Garrison Access . | . . . . . Total Hacks 23 | . 4 10 6 3 Successful 14 | . 3 5 4 2 Failed 9 | . 1 5 2 1 Catastrophic 1 | . . . . 1 Database Lockouts . | . . . . . Manual 2 | . 1 . 1 . Terminals 9 | . 4 . 2 3 Fabricators . | . . . . . Repair Stations 12 | . . 9 3 . Recycling Units 2 | . . 1 1 . Scanalyzers . | . . . . . Garrison Access . | . . . . . Terminal Hacks 5 | . 2 . 1 2 Record 2 | . 1 . . 1 Robot Analysis 1 | . . . . 1 Hauler Manifests 1 | . 1 . . . Zone Layout 1 | . . . 1 . Fabricator Hacks . | . . . . . Repair Station Hacks 7 | . . 5 2 . Scan Component 5 | . . 4 1 . Repair 2 | . . 1 1 . Recycling Unit Hacks . | . . . . . Scanalyzer . | . . . . . Garrison Access Hacks . | . . . . . Unauthorized Hacks 2 | . 1 . 1 . Terminals 1 | . 1 . . . Sabotage 1 | . 1 . . . Fabricators . | . . . . . Repair Stations . | . . . . . Recycling Units 1 | . . . 1 . Tunnel 1 | . . . 1 . Scanalyzers . | . . . . . Garrison Access . | . . . . . Data Cores Recovered . | . . . . . Used . | . . . . . Hacking Detections 6 | . 1 3 1 1 Full Trace Events 2 | . . 2 . . Feedback Events . | . . . . . Feedback Blocked . | . . . . . Robot Schematics Acquired . | . . . . . Robots Built . | . . . . . Authchips . | . . . . . Time . | . . . . . Total Robot Build Rating . | . . . . . Part Schematics Acquired . | . . . . . Parts Built . | . . . . . Authchips . | . . . . . Time . | . . . . . Total Part Build Rating . | . . . . . Parts Repaired 2 | . . 1 1 . Time 64 | . . 26 38 . Parts Recycled . | . . . . . Recycled Matter . | . . . . . Retrieved Matter . | . . . . . Retrieved Components . | . . . . . Parts Scanalyzed . | . . . . . Part Schematics Acquired . | . . . . . Parts Damaged . | . . . . . Bothacking | -11 -10 -9 -8 -7 ------------ Run | Yrd Mat Mat Mat Fac Used RIF Installer . | . . . . . Robots Hacked 2 | . 1 1 . . Non-combat 1 | . 1 . . . Combat 1 | . . 1 . . Robot Hacks Applied 3 | . 2 1 . . parse_system 2 | . 1 1 . . no_distress 1 | . 1 . . . Relay Couplers Released . | . . . . . Fabnet Peak Effective % . | . . . . . Robots Rewired . | . . . . . Allies Hacked . | . . . . . Hacks Repelled . | . . . . . Allies | -11 -10 -9 -8 -7 -------- Run | Yrd Mat Mat Mat Fac Total Allies . | . . . . . Largest Group . | . . . . . Highest-Rated Group . | . . . . . Highest-Rated Ally . | . . . . . Total Orders . | . . . . . Ally Attacks . | . . . . . Total Damage . | . . . . . Kills . | . . . . . Allies Corrupted . | . . . . . Allies Melted . | . . . . . Intel | -11 -10 -9 -8 -7 ------- Run | Yrd Mat Mat Mat Fac Robot Analysis Total 1 | . . . . 1 Derelict Logs Recovered . | . . . . . Drone Launches . | . . . . . Drone Recoveries . | . . . . . Exploration | -11 -10 -9 -8 -7 ------------- Run | Yrd Mat Mat Mat Fac Turns Passed 6974 | 77 1727 2440 2093 637 Spaces Moved 2836 | 56 665 942 833 340 Core 60 | 8 . . . 52 Treads 642 | . . 435 207 . Legs 1977 | 48 665 501 626 137 Wheels 151 | . . . . 151 Hover . | . . . . . Flight 6 | . . 6 . . Fastest Speed 50 | 50 120 120 120 50 Average Speed 165 | 110 152 182 173 129 Slowest Speed 330 | 120 190 250 330 250 Overloaded Moves . | . . . . . Propulsion Burnouts . | . . . . . Robots Hopped . | . . . . . Cave-ins Triggered . | . . . . . Exploration Rate (%) 32 | 4 61 35 60 4 Regions Visited 4 Branch Regions . Pre-discovered Areas 1 | . . . 1 . Known Exits Taken . | . . . . . Unknown Exits Taken 4 | 1 1 1 1 . Scrap Searched . | . . . . . Spaces Dug . | . . . . . Terrain Destroyed 37 | . 34 . 3 . Melee . | . . . . . Projectile . | . . . . . AOE 37 | . 34 . 3 . Terrain Rammed . | . . . . . Walls Destroyed . | . . . . . Machines Disabled . | . . . . . Actions | -11 -10 -9 -8 -7 --------- Run | Yrd Mat Mat Mat Fac Total 4795 | 71 1346 1557 1342 479 Wait 1477 | . 595 472 360 50 Move 2832 | 55 664 941 832 340 Hop . | . . . . . Pick Up 98 | 10 30 27 21 10 Fast Attach . | . . . . . Attach 63 | 6 7 19 14 17 Detach 5 | . 1 . 4 . Swap 48 | . 8 17 19 4 Drop 55 | . 15 16 13 11 Fire 211 | . 23 63 78 47 Melee 4 | . 3 1 . . Ram . | . . . . . Kick 1 | . . 1 . . Crush 1 | . . . 1 . Escape Stasis . | . . . . . Rewire . | . . . . . Trap . | . . . . . Miscellaneous . | . . . . . Route ------- -11/Scrapyard -10/Materials -9/Materials -8/Materials -7/Factory History --------- Turn | Location | Event 5 | -11/Scrapyard | Discovered new exit (range 15) 78 | -11/Scrapyard | Entered Materials 301 | -10/Materials | Lost 3 parts (1n2w) 324 | -10/Materials | Build established: Mutant 1349 | -10/Materials | Discovered new exit (range 5) 1805 | -10/Materials | Entered another Materials area 1805 | -9/Materials | Evolved 2 slots: Propulsion x2 2079 | -9/Materials | Lost 4 parts (1p2n1u) 2903 | -9/Materials | Repaired Aluminum Leg 3179 | -9/Materials | Discovered new exit (range 15) 4245 | -9/Materials | Entered another Materials area 4245 | -8/Materials | Evolved 2 slots: Power x1, Utility x1 4648 | -8/Materials | Build established: Scavenger-Mutant 4895 | -8/Materials | Lost 3 parts (1p2n) 4925 | -8/Materials | Garrison activated, responded to threat 5085 | -8/Materials | Lost 4 parts (3n1w) 5557 | -8/Materials | Repaired Deuterium Engine 5838 | -8/Materials | Discovered new exit (range 3) 5859 | -8/Materials | Build established: Mutant 6338 | -8/Materials | Entered Factory 6338 | -7/Factory | Evolved 2 slots: Power x1, Weapon x1 6520 | -7/Factory | Lost 3 parts (1p1u1w) 6685 | -7/Factory | Core integrity fell below 50% 6715 | -7/Factory | Lost 6 parts (2p2n1u1w) 6779 | -7/Factory | Core integrity fell below 20% 6975 | -7/Factory | Destroyed by H-55 Commando with Gauss Rifle Last Messages --------------- ALERT: Cargo convoy en route, clear transfer corridor. Acquired 65 matter. Slug penetrates Pressure Siphon. Pressure Siphon disabled. Imp. Sensor Array destroyed. Arc Projector destroyed. Penetrated by Slug. Aluminum Leg destroyed. Katana destroyed. Penetrated by Slug. Carbon-fiber Leg destroyed. Aluminum Leg destroyed. Pulse Rifle destroyed. Slug penetrates Pressure Siphon. Penetrated by Slug. Minigun destroyed. Imp. Heat Sink destroyed. Slug penetrates Matter Pump. Matter Pump disabled. Map ----- +----------------------------------------------------+ | ????????????# #???????????? ??????????? | | ????????????# """" """" #??????????#+??????#????? | | ???#???#????# """" """" ##??# ? ????? #????? | | ????????????# """" """" #?#?# """"" "???? # ???? | | ?#?????????## """" """" #???? ""T"" """" ?????? | | ?#?????##???# #???? """" !?????? | | ??#??#??##??# """" """" #????? [ """" ??????? | | ????????##??# """" """" #?????? ???????? | | ?????#?#?#??# """" """" ###?####"" ""###?#????? | | ?#??#?#????## """" """" #???# #????? | | ?##?????#???# #???# ### | | #??#???##???# #??## " | | ?????#???##########+####+##### " | | ?##?##???# # " | | ?????????# # " | | ????#?##?# %""" """ " + " | | ###?####?# """" """ T" # ![ # | | ###T ### %""" """ "" k# ! # | | # h # ! #? | | # """" ""%% """" # #? | | # """" """ """" # #?? | | + """" """ """" ####"""""#####??? | | # p ##?#######????#?? | | !# #??? ????????????? | | # #?????"??????????? | | ###################### @ #???????? ?????????? | | ###?????????##?????????# #??????????????#????? | | ????????????###????? ??# #??? ????? ?????????? | | ???????????????? ???"??+ +???? ??????????????? | | ???#???????#???????????# ##???????#?#????????? | | ?????????????#?????????# #???????????????????? | | #??????????#???????????# #????#??#???????????? | | ???????????????????????# #???????????????????? | | ???????????????????????# #???????????????????? | | ????????#??????????????# ???????????????????? | | ??##???????????????????# ???????????????????? | | ???????????????????????# ??????????????????? | | ???????????????????????# ??????????????????? | | ???????????????????????? ?????????????????? | | ????????????????????????######???????????????????? | | ?????????????????????????????????????????????????? | | ?????????????????????????????????????????????????? | | ?????????????????????????????????????????????????? | | ?????????????????????????????????????????????????? | | ?????????????????????????????????????????????????? | | ?????????????????????????????????????????????????? | | ?????????????????????????????????????????????????? | | ?????????????????????????????????????????????????? | | ?????????????????????????????????????????????????? | | ?????????????????????????????????????????????????? | +----------------------------------------------------+ Best States ------------- Heat Dissipation 48 Energy Generation 32 Energy Capacity 475 Matter Stores 300 Matter Capacity 300 Sight Range 18 Robot Scan Range 15 Terrain Scan Range 16 Terrain Scan Density 85 ECM Strength 2 Additional Mass Support 6 Armor Coverage 225 Evasion (%) 55 Recoil Reduction 2 Item Schematics ----------------- None Robot Schematics ------------------ None Fabricated ------------ Nothing Alien Tech Used ----------------- None Achievements -------------- Brute Force Shopping List Troublemaker Challenges ------------ None Game ------ Seed LayeredTractorLattice Manual? 0 Play Time 01:09:10 Cumulative 5.5 hours Start 2024.05.05 @ 20:05:18 End 2024.05.05 @ 22:13:51 Sessions 3 Manual Loads 0 Difficulty Rogue Special Mode None Game No. 4 Rogue 3 Adventurer 1 Explorer 0 Win Type - Total 0 Types 0/0/0/0/0/0/0/0/0 Lore% 5 Gallery% 10 Achievement% 9 Wizard Run 0 Options --------- Layout 1 ASCII 0 Keyboard 0 Movement Mouse Keybinds 0 Fullscreen 1 Font 24/Proggy Map View 50x35 Zoom Use 0% Tactical HUD 0 Map Filters NONE Filters NONE Steam 1 RUN: 81933619-2115-4d45-9138-b01a74565665